Workbook

Sheet Pronostiques
A1: Participant Forum | B1: Pseudo IG | C1: Numéro attribué TOURNOI | D1: Tyrell | F1: Lannister | H1: Martell | J1: Baratheon | L1: Stark | N1: Greyjoy | P1: TOTAL
D2: Joué | E2: Gagné | F2: Joué | G2: Gagné | H2: Joué | I2: Gagné | J2: Joué | K2: Gagné | L2: Joué | M2: Gagné | N2: Joué | O2: Gagné | P2: Joué | Q2: Gagné | R2: % Victoires | S2: Rang | T2: Classement par victoires
A3: Sentanza | B3: Sentanza | D3: 0 | E3: 0 | F3: 0 | G3: 0 | H3: 0 | I3: 0 | J3: 0 | K3: 0 | L3: 2 | M3: 1 | N3: 1 | O3: 0 | P3: =SUM(N3,L3,J3,H3,F3,D3) -> 3 | Q3: =SUM(E3,G3,I3,K3,M3,O3) -> 1 | R3: =Q3/P3 -> 0.3333333333 | S3: =RANK(R3,$R$3:$R$46,0) -> 10 | T3: =RANK(Q3,$Q$3:$Q$46,0) -> 33
A4: Tauligra | B4: Tauligra | D4: 1 | E4: 0 | F4: 0 | G4: 0 | H4: 0 | I4: 0 | J4: 0 | K4: 0 | L4: 1 | M4: 0 | N4: 2 | O4: 0 | P4: =SUM(N4,L4,J4,H4,F4,D4) -> 4 | Q4: =SUM(E4,G4,I4,K4,M4,O4) -> 0 | R4: =Q4/P4 -> 0 | S4: =RANK(R4,$R$3:$R$46,0) -> 35 | T4: =RANK(Q4,$Q$3:$Q$46,0) -> 35
A5: Lord Batnono | B5: Batnono | D5: 0 | E5: 0 | F5: 1 | G5: 0 | H5: 0 | I5: 0 | J5: 0 | K5: 0 | L5: 0 | M5: 0 | N5: 1 | O5: 0 | P5: 2 | Q5: 0 | R5: 0 | S5: 35 | T5: 35
A6: Ironmaidenx | B6: Ironmaidenx | D6: 11 | E6: 4 | F6: 5 | G6: 3 | H6: 9 | I6: 4 | J6: 7 | K6: 5 | L6: 11 | M6: 5 | N6: 4 | O6: 3 | P6: 47 | Q6: 24 | R6: 0.5106382979 | S6: 4 | T6: 1
A7: Ender | B7: Ender | D7: 3 | E7: 2 | F7: 7 | G7: 2 | H7: 1 | I7: 0 | J7: 6 | K7: 2 | L7: 1 | M7: 1 | N7: 3 | O7: 0 | P7: 21 | Q7: 7 | R7: 0.3333333333 | S7: 10 | T7: 6
A8: Amombar74 | B8: Amombar | D8: 6 | E8: 2 | F8: 5 | G8: 0 | H8: 3 | I8: 1 | J8: 2 | K8: 0 | L8: 1 | M8: 0 | N8: 4 | O8: 0 | P8: 21 | Q8: 3 | R8: 0.1428571429 | S8: 26 | T8: 18
A9: Garth | B9: Garth | D9: 4 | E9: 0 | F9: 5 | G9: 0 | H9: 3 | I9: 2 | J9: 4 | K9: 0 | L9: 3 | M9: 1 | N9: 4 | O9: 1 | P9: 23 | Q9: 4 | R9: 0.1739130435 | S9: 22 | T9: 13
A10: Cocoyanouck | B10: Cocoyanouck | D10: 4 | E10: 0 | F10: 2 | G10: 1 | H10: 5 | I10: 0 | J10: 3 | K10: 1 | L10: 6 | M10: 0 | N10: 3 | O10: 1 | P10: 23 | Q10: 3 | R10: 0.1304347826 | S10: 29 | T10: 18
A11: Horadreem | B11: Horadreem | D11: 9 | E11: 1 | F11: 8 | G11: 0 | H11: 9 | I11: 0 | J11: 8 | K11: 1 | L11: 9 | M11: 1 | N11: 9 | O11: 4 | P11: 52 | Q11: 7 | R11: 0.1346153846 | S11: 28 | T11: 6
A12: Aénaarion | B12: Aénaarion | D12: 8 | E12: 2 | F12: 9 | G12: 1 | H12: 4 | I12: 1 | J12: 12 | K12: 3 | L12: 6 | M12: 1 | N12: 13 | O12: 7 | P12: 52 | Q12: 15 | R12: 0.2884615385 | S12: 16 | T12: 2
A13: Tal | B13: Tal | D13: 12 | E13: 1 | F13: 13 | G13: 0 | H13: 7 | I13: 1 | J13: 12 | K13: 1 | L13: 8 | M13: 2 | N13: 9 | O13: 2 | P13: 61 | Q13: 7 | R13: 0.1147540984 | S13: 30 | T13: 6
A14: Namtok | B14: Namtok | D14: 9 | E14: 3 | F14: 7 | G14: 0 | H14: 3 | I14: 0 | J14: 8 | K14: 3 | L14: 11 | M14: 4 | N14: 7 | O14: 3 | P14: 45 | Q14: 13 | R14: 0.2888888889 | S14: 15 | T14: 3
A15: Jake The Dog | B15: Jake The Dog | D15: 3 | E15: 1 | F15: 5 | G15: 0 | H15: 1 | I15: 0 | J15: 7 | K15: 1 | L15: 5 | M15: 0 | N15: 7 | O15: 1 | P15: 28 | Q15: 3 | R15: 0.1071428571 | S15: 32 | T15: 18
A16: Gambit | B16: Gambit | D16: 5 | E16: 1 | F16: 2 | G16: 0 | H16: 2 | I16: 1 | J16: 1 | K16: 1 | L16: 0 | M16: 0 | N16: 0 | O16: 0 | P16: 10 | Q16: 3 | R16: 0.3 | S16: 14 | T16: 18
A17: WillamK | B17: WillamK | D17: 1 | E17: 1 | F17: 1 | G17: 0 | H17: 2 | I17: 0 | J17: 1 | K17: 1 | L17: 1 | M17: 0 | N17: 2 | O17: 1 | P17: 8 | Q17: 3 | R17: 0.375 | S17: 8 | T17: 18
A18: Kokunut38 | B18: Kokunut38 | D18: 0 | E18: 0 | F18: 0 | G18: 0 | H18: 0 | I18: 0 | J18: 0 | K18: 0 | L18: 0 | M18: 0 | N18: 0 | O18: 0 | P18: 0 | Q18: 0 | R18: 0 | S18: 35 | T18: 35
A19: Minos 83 | B19: Minos 83 | D19: 3 | E19: 1 | F19: 3 | G19: 1 | H19: 4 | I19: 1 | J19: 1 | K19: 0 | L19: 1 | M19: 0 | N19: 2 | O19: 2 | P19: 14 | Q19: 5 | R19: 0.3571428571 | S19: 9 | T19: 11
A20: Clopinette | B20: Clopinette | D20: 3 | E20: 1 | F20: 4 | G20: 1 | H20: 3 | I20: 3 | J20: 2 | K20: 1 | L20: 3 | M20: 2 | N20: 2 | O20: 1 | P20: 17 | Q20: 9 | R20: 0.5294117647 | S20: 3 | T20: 4
A21: Linos | B21: Linos | D21: 0 | E21: 0 | F21: 2 | G21: 0 | H21: 0 | I21: 0 | J21: 0 | K21: 0 | L21: 1 | M21: 0 | N21: 0 | O21: 0 | P21: 3 | Q21: 0 | R21: 0 | S21: 35 | T21: 35
A22: Elyrioss | B22: Elyrioss | D22: 2 | E22: 0 | F22: 1 | G22: 0 | H22: 2 | I22: 1 | J22: 0 | K22: 0 | L22: 2 | M22: 0 | N22: 3 | O22: 1 | P22: 10 | Q22: 2 | R22: 0.2 | S22: 20 | T22: 28
A23: Jaeregan | B23: Jaeregan | D23: 3 | E23: 1 | F23: 5 | G23: 1 | H23: 3 | I23: 0 | J23: 4 | K23: 1 | L23: 5 | M23: 3 | N23: 6 | O23: 2 | P23: 26 | Q23: 8 | R23: 0.3076923077 | S23: 13 | T23: 5
A24: Arya74 | B24: Arya74 | D24: 1 | E24: 1 | F24: 0 | G24: 0 | H24: 2 | I24: 0 | J24: 1 | K24: 1 | L24: 1 | M24: 1 | N24: 2 | O24: 0 | P24: 7 | Q24: 3 | R24: 0.4285714286 | S24: 6 | T24: 18
A25: Shyria | B25: Shyria | D25: 4 | E25: 0 | F25: 1 | G25: 0 | H25: 6 | I25: 0 | J25: 4 | K25: 0 | L25: 3 | M25: 0 | N25: 1 | O25: 0 | P25: 19 | Q25: 0 | R25: 0 | S25: 35 | T25: 35
A26: Moz-kito | B26: Moz | D26: 5 | E26: 0 | F26: 4 | G26: 0 | H26: 2 | I26: 1 | J26: 5 | K26: 3 | L26: 2 | M26: 0 | N26: 2 | O26: 1 | P26: 20 | Q26: 5 | R26: 0.25 | S26: 18 | T26: 11
A27: Sagarmatha | B27: Sagarmatha | D27: 0 | E27: 0 | F27: 0 | G27: 0 | H27: 0 | I27: 0 | J27: 1 | K27: 0 | L27: 1 | M27: 0 | N27: 0 | O27: 0 | P27: 2 | Q27: 0 | R27: 0 | S27: 35 | T27: 35
A28: Oulaoups | B28: Oulaoups | D28: 0 | E28: 0 | F28: 0 | G28: 0 | H28: 0 | I28: 0 | J28: 0 | K28: 0 | L28: 0 | M28: 0 | N28: 0 | O28: 0 | P28: 0 | Q28: 0 | R28: 0 | S28: 35 | T28: 35
A29: Possom | B29: Possom | D29: 7 | E29: 2 | F29: 4 | G29: 0 | H29: 6 | I29: 0 | J29: 6 | K29: 2 | L29: 4 | M29: 1 | N29: 3 | O29: 1 | P29: 30 | Q29: 6 | R29: 0.2 | S29: 20 | T29: 10
A30: NeijH | B30: NeijH | D30: 3 | E30: 0 | F30: 4 | G30: 0 | H30: 2 | I30: 0 | J30: 7 | K30: 0 | L30: 7 | M30: 3 | N30: 6 | O30: 0 | P30: 29 | Q30: 3 | R30: 0.1034482759 | S30: 33 | T30: 18
A31: Delapaille | B31: Delapaille | D31: 3 | E31: 0 | F31: 4 | G31: 0 | H31: 3 | I31: 1 | J31: 9 | K31: 2 | L31: 5 | M31: 0 | N31: 5 | O31: 1 | P31: 29 | Q31: 4 | R31: 0.1379310345 | S31: 27 | T31: 13
A32: Vermoulu | B32: Vermoulu | D32: 1 | E32: 1 | F32: 1 | G32: 0 | H32: 4 | I32: 0 | J32: 1 | K32: 0 | L32: 2 | M32: 0 | N32: 0 | O32: 0 | P32: 9 | Q32: 1 | R32: 0.1111111111 | S32: 31 | T32: 33
A33: Mutos | B33: Mutos | D33: 0 | E33: 0 | F33: 0 | G33: 0 | H33: 0 | I33: 0 | J33: 4 | K33: 2 | L33: 0 | M33: 0 | N33: 0 | O33: 0 | P33: 4 | Q33: 2 | R33: 0.5 | S33: 5 | T33: 28
A34: Forcerouge78 | B34: Forcerouge78 | D34: 4 | E34: 2 | F34: 1 | G34: 0 | H34: 2 | I34: 1 | J34: 0 | K34: 0 | L34: 4 | M34: 1 | N34: 1 | O34: 0 | P34: 12 | Q34: 4 | R34: 0.3333333333 | S34: 10 | T34: 13
A35: Thusane | B35: Thusane | D35: 5 | E35: 0 | F35: 3 | G35: 0 | H35: 2 | I35: 0 | J35: 2 | K35: 0 | L35: 4 | M35: 0 | N35: 4 | O35: 0 | P35: 20 | Q35: 0 | R35: 0 | S35: 35 | T35: 35
A36: Pietou | B36: Pietou | D36: 5 | E36: 1 | F36: 4 | G36: 2 | H36: 2 | I36: 0 | J36: 3 | K36: 0 | L36: 2 | M36: 0 | N36: 3 | O36: 0 | P36: 19 | Q36: 3 | R36: 0.1578947368 | S36: 25 | T36: 18
A37: LouBew | B37: LouBew | D37: 9 | E37: 0 | F37: 2 | G37: 0 | H37: 8 | I37: 1 | J37: 9 | K37: 1 | L37: 7 | M37: 5 | N37: 9 | O37: 0 | P37: 44 | Q37: 7 | R37: 0.1590909091 | S37: 24 | T37: 6
A38: Joukov | B38: Joukov | D38: 4 | E38: 0 | F38: 2 | G38: 0 | H38: 6 | I38: 0 | J38: 3 | K38: 1 | L38: 4 | M38: 1 | N38: 3 | O38: 0 | P38: 22 | Q38: 2 | R38: 0.09090909091 | S38: 34 | T38: 28
A39: Vent Gris | B39: Vent Gris | D39: 1 | E39: 0 | F39: 1 | G39: 0 | H39: 0 | I39: 0 | J39: 0 | K39: 0 | L39: 1 | M39: 0 | N39: 0 | O39: 0 | P39: =SUM(N39,L39,J39,H39,F39,D39) -> 3 | Q39: =SUM(E39,G39,I39,K39,M39,O39) -> 0 | R39: =Q39/P39 -> 0 | S39: 35 | T39: 35
A40: Lord A.K | B40: Lord A.K | D40: 3 | E40: 1 | F40: 2 | G40: 1 | H40: 0 | I40: 0 | J40: 0 | K40: 0 | L40: 0 | M40: 0 | N40: 0 | O40: 0 | P40: 5 | Q40: 2 | R40: 0.4 | S40: 7 | T40: 28
A41: Gromrek | B41: Gromrek | D41: 0 | E41: 0 | F41: 0 | G41: 0 | H41: 0 | I41: 0 | J41: 0 | K41: 0 | L41: 0 | M41: 0 | N41: 2 | O41: 2 | P41: =SUM(N41,L41,J41,H41,F41,D41) -> 2 | Q41: =SUM(E41,G41,I41,K41,M41,O41) -> 2 | R41: =Q41/P41 -> 1 | S41: 1 | T41: 28
A42: Dodger | B42: Dodger | D42: 0 | E42: 0 | F42: 0 | G42: 0 | H42: 0 | I42: 0 | J42: 0 | K42: 0 | L42: 0 | M42: 0 | N42: 0 | O42: 0 | P42: 0 | Q42: 0 | R42: 0 | S42: 35 | T42: 35
A43: Blacksmiths | B43: Blacksmiths | D43: 3 | E43: 0 | F43: 2 | G43: 0 | H43: 3 | I43: 1 | J43: 1 | K43: 1 | L43: 3 | M43: 0 | N43: 4 | O43: 2 | P43: 16 | Q43: 4 | R43: 0.25 | S43: 18 | T43: 13
A44: Niamor723 | B44: Niamor723 | D44: 1 | E44: 1 | F44: 0 | G44: 0 | H44: 1 | I44: 1 | J44: 1 | K44: 1 | L44: 0 | M44: 0 | N44: 0 | O44: 0 | P44: 3 | Q44: 3 | R44: 1 | S44: 1 | T44: 18
A45: Ffuj35 | B45: Ffuj35 | D45: 4 | E45: 0 | F45: 3 | G45: 0 | H45: 3 | I45: 1 | J45: 5 | K45: 2 | L45: 1 | M45: 0 | N45: 2 | O45: 0 | P45: 18 | Q45: 3 | R45: 0.1666666667 | S45: 23 | T45: 18
A46: Zubeldia | B46: Zubeldia | D46: 3 | E46: 0 | F46: 4 | G46: 1 | H46: 1 | I46: 0 | J46: 1 | K46: 1 | L46: 1 | M46: 1 | N46: 4 | O46: 1 | P46: 14 | Q46: 4 | R46: 0.2857142857 | S46: 17 | T46: 13
A52: Creator2 | B52: TheCreator | C52: REMPLACANT | D52: 1 | E52: 0 | F52: 0 | G52: 0 | H52: 2 | I52: 0 | J52: 0 | K52: 0 | L52: 1 | M52: 0 | N52: 0 | O52: 0 | P52: =SUM(N52,L52,J52,H52,F52,D52) -> 4 | Q52: =SUM(E52,G52,I52,K52,M52,O52) -> 0
A53: Loup Borgne | B53: Loup Borgne | C53: REMPLACANT | D53: 1 | E53: 0 | F53: 1 | G53: 0 | H53: 1 | I53: 0 | J53: 3 | K53: 2 | L53: 0 | M53: 0 | N53: 0 | O53: 0 | P53: =SUM(N53,L53,J53,H53,F53,D53) -> 6 | Q53: =SUM(E53,G53,I53,K53,M53,O53) -> 2
A54: Pazu | B54: Pazu | C54: REMPLACANT | D54: 3 | E54: 0 | F54: 5 | G54: 0 | H54: 6 | I54: 3 | J54: 4 | K54: 2 | L54: 7 | M54: 4 | N54: 7 | O54: 1 | P54: =SUM(N54,L54,J54,H54,F54,D54) -> 32 | Q54: =SUM(E54,G54,I54,K54,M54,O54) -> 10
A55: Le Gnome | B55: Le Gnome | C55: ANNULE | D55: 0 | E55: 0 | F55: 1 | G55: 0 | H55: 2 | I55: 0 | J55: 4 | K55: 0 | L55: 3 | M55: 0 | N55: 1 | O55: 1 | P55: =SUM(N55,L55,J55,H55,F55,D55) -> 11 | Q55: =SUM(E55,G55,I55,K55,M55,O55) -> 1
A57: Nombre de participants | F57: Mise à jour : 15/09/2014
A58: =COUNTA(B3:B46) -> 44

Sheet Taux Ender
A2: Pourcentages de victoire
A3: Tyrell | B3: 10.5
A4: Lannister | B4: 11.5
A5: Martell | B5: 12.5
A6: Baratheon | B6: 18.5
A7: Stark | B7: 21.5
A8: Greyjoy | B8: 25.5
A10: Mise à jour : | B10: 2014-09-08

Sheet Grille de rencontres
A1: Joueurs | B1: Numéro Attribué | E1: N° Partie | F1: Tyrell | G1: Lannister | H1: Martell | I1: Baratheon | J1: Stark | K1: Greyjoy | M1: Vainqueur | N1: Famille | P1: Tyrell | Q1: Lannister | R1: Martell | S1: Baratheon | T1: Stark | U1: Greyjoy
A2: Sentanza | B2: 23 | E2: 1585 | F2: Tauligra | G2: Possom | H2: WillamK | I2: Aénaarion | J2: Joukov | K2: Jaeregan | M2: Jaeregan | N2: Greyjoy | P2: 1 | Q2: 0 | R2: 5 | S2: 4 | T2: 3 | U2: 7
A3: Tauligra | B3: 1 | E3: =E2+1 -> 1586 | F3: Possom | G3: Ffuj35 | H3: Lord A.K | I3: Mutos | J3: Niamor723 | K3: Elyrioss | M3: Niamor723 | N3: Stark | P3: 0 | Q3: 4 | R3: 6 | S3: 2 | T3: 7 | U3: 1
A4: Batnono | B4: 36 | E4: =E3+1 -> 1587 | F4: WillamK | G4: Oulaoups | H4: NejiH | I4: Arya74 | J4: Sagarmatha | K4: Pietou | M4: Pietou | N4: Greyjoy | P4: 2 | Q4: 0 | R4: 5 | S4: 4 | T4: 4 | U4: 5
A5: Ironmaidenx | B5: 22 | E5: 1588 | F5: Aénaarion | G5: Blacksmiths | H5: Delapaille | I5: Cocoyanouck | J5: Shyria | K5: Gromrek | M5: Aénaarion | N5: Tyrell | P5: 7 | Q5: 4 | R5: 2 | S5: 2 | T5: 4 | U5: 0
A6: Ender | B6: 38 | E6: 1589 | F6: Joukov | G6: Kokunut38 | H6: Minos 83 | I6: Sagarmatha | J6: Gambit | K6: Lord A.K | M6: Gambit | N6: Stark | P6: 4 | Q6: 0 | R6: 4 | S6: 3 | T6: 7 | U6: 2
A7: Amombar | B7: 41 | E7: 1590 | F7: Jaeregan | G7: Jake The Dog | H7: Elyrioss | I7: Forcerouge78 | J7: Clopinette | K7: Shyria | M7: Clopinette | N7: Stark | P7: 3 | Q7: 4 | R7: 4 | S7: 2 | T7: 7 | U7: 0
A8: Garth | B8: 7 | E8: 1591 | F8: Garth | G8: Jaeregan | H8: Tal | I8: Pietou | J8: Dodger | K8: Mutos | M8: Dodger | N8: Stark | P8: 4 | Q8: 1 | R8: 3 | S8: 1 | T8: 7 | U8: 3
A9: Cocoyanouck | B9: 19 | E9: 1592 | F9: Pietou | G9: Thusane | H9: Joukov | I9: Niamor723 | J9: Delapaille | K9: Jake The Dog | M9: Jake The Dog | N9: Greyjoy | P9: 6 | Q9: 1 | R9: 0 | S9: 4 | T9: 2 | U9: 7
A10: Horadreem | B10: 20 | E10: 1593 | F10: Zubeldia | G10: Pietou | H10: Vent Gris | I10: Horadreem | J10: Lord A.K | K10: LouBew | M10: Vent Gris | N10: Martell | P10: 4 | Q10: 2 | R10: 5 | S10: 4 | T10: 5 | U10: 0
A11: Aénaarion | B11: 4 | E11: 1594 | F11: Ffuj35 | G11: Horadreem | H11: Sagarmatha | I11: Shyria | J11: Batnono | K11: Joukov | M11: Joukov | N11: Greyjoy | P11: 4 | Q11: 1 | R11: 4 | S11: 3 | T11: 4 | U11: 4
A12: Tal | B12: 37 | E12: 1595 | F12: Minos 83 | G12: WillamK | H12: Ironmaidenx | I12: Tal | J12: Namtok | K12: Blacksmiths | M12: Tal | N12: Baratheon | P12: 3 | Q12: 4 | R12: 3 | S12: 7 | T12: 1 | U12: 2
A13: Namtok | B13: 12 | E13: 1596 | F13: Namtok | G13: Amombar | H13: LouBew | I13: Gromrek | J13: Vermoulu | K13: Moz | M13: Moz | N13: Greyjoy | P13: 6 | Q13: 0 | R13: 0 | S13: 3 | T13: 4 | U13: 7
A14: Jake The Dog | B14: 18 | E14: 1597 | F14: Shyria | G14: Ironmaidenx | H14: Mutos | I14: Amombar | J14: Zubeldia | K14: Ender | M14: Ender | N14: Greyjoy | P14: 3 | Q14: 0 | R14: 2 | S14: 5 | T14: 4 | U14: 6
A15: Gambit | B15: 35 | E15: 1598 | F15: Delapaille | G15: Minos 83 | H15: Linos | I15: Batnono | J15: Amombar | K15: Garth | M15: Linos | N15: Martell | P15: 0 | Q15: 4 | R15: 7 | S15: 4 | T15: 3 | U15: 2
A16: WillamK | B16: 3 | E16: 1599 | F16: Oulaoups | G16: Tauligra | H16: Clopinette | I16: Delapaille | J16: Kokunut38 | K16: Forcerouge78 | M16: Kokunut38 | N16: Stark | P16: 2 | Q16: 1 | R16: 4 | S16: 1 | T16: 7 | U16: 4
A17: Kokunut38 | B17: 26 | E17: 1600 | F17: NejiH | G17: Moz | H17: Gambit | I17: Vent Gris | J17: Ffuj35 | K17: Amombar | M17: Amombar | N17: Greyjoy | P17: 1 | Q17: 0 | R17: 3 | S17: 3 | T17: 4 | U17: 7
A18: Minos 83 | B18: 11 | E18: 1601 | F18: Gromrek | G18: Niamor723 | H18: Horadreem | I18: Dodger | J18: Thusane | K18: Kokunut38 | M18: Gromrek | N18: Tyrell | P18: 8 | Q18: 1 | R18: 4 | S18: 3 | T18: 1 | U18: 3
A19: Clopinette | B19: 34 | E19: 1602 | F19: Jake The Dog | G19: Sagarmatha | H19: Garth | I19: Zubeldia | J19: Blacksmiths | K19: Vermoulu | M19: Vermoulu | N19: Greyjoy | P19: 3 | Q19: 0 | R19: 4 | S19: 3 | T19: 3 | U19: 7
A20: Linos | B20: 25 | E20: 1603 | F20: Cocoyanouck | G20: Ender | H20: Possom | I20: Kokunut38 | J20: Ironmaidenx | K20: NejiH | M20: Ironmaidenx | N20: Stark | P20: 4 | Q20: 3 | R20: 4 | S20: 2 | T20: 7 | U20: 0
A21: Elyrioss | B21: 33 | E21: 1604 | F21: Horadreem | G21: NejiH | H21: Aénaarion | I21: Blacksmiths | J21: Elyrioss | K21: Namtok | M21: Blacksmiths | N21: Baratheon | P21: 3 | Q21: 1 | R21: 3 | S21: 7 | T21: 2 | U21: 4
A22: Jaeregan | B22: 6 | E22: 1605 | F22: Forcerouge78 | G22: Mutos | H22: Ender | I22: WillamK | J22: Gromrek | K22: Sagarmatha | M22: Ender | N22: Martell | P22: 2 | Q22: 3 | R22: 7 | S22: 1 | T22: 5 | U22: 2
A23: Arya74 | B23: 44 | E23: 1606 | F23: Ironmaidenx | G23: Joukov | H23: Gromrek | I23: Vermoulu | J23: Linos | K23: Oulaoups | M23: Linos | N23: Stark | P23: 4 | Q23: 2 | R23: 4 | S23: 2 | T23: 7 | U23: 1
A24: Shyria | B24: 13 | E24: 1607 | F24: Sentanza | G24: Lord A.K | H24: Blacksmiths | I24: Oulaoups | J24: Minos 83 | K24: Thusane | M24: Blacksmiths | N24: Martell | P24: 4 | Q24: 0 | R24: 7 | S24: 0 | T24: 3 | U24: 5
A25: Moz | B25: 24 | E25: 1608 | F25: Moz | G25: Vermoulu | H25: Tauligra | I25: Sentanza | J25: WillamK | K25: Dodger | M25: Sentanza | N25: Baratheon | P25: 2 | Q25: 2 | R25: 1 | S25: 7 | T25: 4 | U25: 2
A26: Sagarmatha | B26: 31 | E26: 1609 | F26: Linos | G26: Forcerouge78 | H26: Thusane | I26: Possom | J26: Moz | K26: Tal | M26: Moz | N26: Stark | P26: 4 | Q26: 0 | R26: 3 | S26: 3 | T26: 5 | U26: 4
A27: Oulaoups | B27: 15 | E27: 1610 | F27: Kokunut38 | G27: Arya74 | H27: Namtok | I27: Thusane | J27: Jake The Dog | K27: Ffuj35 | M27: Namtok | N27: Martell | P27: 0 | Q27: 4 | R27: 6 | S27: 3 | T27: 2 | U27: 5
A28: Possom | B28: 2 | E28: 1611 | F28: Niamor723 | G28: Batnono | H28: Forcerouge78 | I28: NejiH | J28: Sentanza | K28: Zubeldia | M28: Zubeldia | N28: Greyjoy | P28: 3 | Q28: 0 | R28: 4 | S28: 3 | T28: 3 | U28: 7
A29: NejiH | B29: 16 | E29: 1612 | F29: Dodger | G29: Aénaarion | H29: Amombar | I29: Jake The Dog | J29: Arya74 | K29: Ironmaidenx | M29: Arya74 | N29: Stark | P29: 3 | Q29: 4 | R29: 3 | S29: 4 | T29: 5 | U29: 1
A30: Delapaille | B30: 14 | E30: 1613 | F30: LouBew | G30: Cocoyanouck | H30: Dodger | I30: Joukov | J30: Forcerouge78 | K30: Arya74 | M30: Joukov | N30: Baratheon | P30: 2 | Q30: 2 | R30: 4 | S30: 7 | T30: 0 | U30: 5
A31: Vermoulu | B31: 43 | E31: 1614 | F31: Lord A.K | G31: Garth | H31: Moz | I31: Clopinette | J31: Ender | K31: Aénaarion | M31: Ender | N31: Stark | P31: 3 | Q31: 0 | R31: 3 | S31: 3 | T31: 7 | U31: 3
A32: Mutos | B32: 32 | E32: 1615 | F32: Sagarmatha | G32: Linos | H32: Cocoyanouck | I32: Tauligra | J32: Tal | K32: Horadreem | M32: Tal | N32: Stark | P32: 2 | Q32: 2 | R32: 3 | S32: 4 | T32: 7 | U32: 1
A33: Forcerouge78 | B33: 21 | E33: 1616 | F33: Mutos | G33: LouBew | H33: Arya74 | I33: Minos 83 | J33: NejiH | K33: Clopinette | M33: Arya74 | N33: Martell | P33: 0 | Q33: 6 | R33: 7 | S33: 3 | T33: 4 | U33: 0
A34: Thusane | B34: 42 | E34: 1617 | F34: Elyrioss | G34: Dodger | H34: Zubeldia | I34: Gambit | J34: Possom | K34: Delapaille | M34: Gambit | N34: Baratheon | P34: 3 | Q34: 0 | R34: 2 | S34: 7 | T34: 3 | U34: 5
A35: Pietou | B35: 8 | E35: 1618 | F35: Clopinette | G35: Vent Gris | H35: Niamor723 | I35: Ironmaidenx | J35: Jaeregan | K35: Batnono | M35: Jaeregan | N35: Stark | P35: 2 | Q35: 4 | R35: 4 | S35: 4 | T35: 5 | U35: 1
A36: LouBew | B36: 29 | E36: 1619 | F36: Gambit | G36: Shyria | H36: Kokunut38 | I36: Linos | J36: Vent Gris | K36: WillamK | M36: Vent Gris | N36: Stark | P36: 3 | Q36: 0 | R36: 4 | S36: 2 | T36: 6 | U36: 5
A37: Joukov | B37: 5 | E37: 1620 | F37: Batnono | G37: Elyrioss | H37: Pietou | I37: Ender | J37: Cocoyanouck | K37: Minos 83 | M37: Ender | N37: Baratheon | P37: 2 | Q37: 3 | R37: 2 | S37: 7 | T37: 3 | U37: 1
A38: Vent Gris | B38: 39 | E38: 1621 | F38: Tal | G38: Gromrek | H38: Jake The Dog | I38: Elyrioss | J38: Tauligra | K38: Vent Gris | M38: Tal | N38: Tyrell | P38: 7 | Q38: 2 | R38: 1 | S38: 2 | T38: 6 | U38: 2
A39: Lord A.K | B39: 30 | E39: 1622 | F39: Ender | G39: Gambit | H39: Oulaoups | I39: Namtok | J39: Garth | K39: Niamor723 | M39: Ender | N39: Tyrell | P39: 7 | Q39: 4 | R39: 0 | S39: 3 | T39: 1 | U39: 4
A40: Gromrek | B40: 17 | E40: 1623 | F40: Vent Gris | G40: Sentanza | H40: Shyria | I40: Garth | J40: LouBew | K40: Possom | M40: LouBew | N40: Stark | P40: 2 | Q40: 3 | R40: 4 | S40: 3 | T40: 7 | U40: 1
A41: Dodger | B41: 28 | E41: 1624 | F41: Blacksmiths | G41: Clopinette | H41: Vermoulu | I41: Ffuj35 | J41: Pietou | K41: Linos | M41: Clopinette | N41: Lannister | P41: 3 | Q41: 7 | R41: 4 | S41: 3 | T41: 2 | U41: 0
A42: Blacksmiths | B42: 40 | E42: 1625 | F42: Amombar | G42: Delapaille | H42: Sentanza | I42: Jaeregan | J42: Horadreem | K42: Gambit | M42: Amombar | N42: Tyrell | P42: 6 | Q42: 0 | R42: 2 | S42: 5 | T42: 2 | U42: 5
A43: Niamor723 | B43: 27 | E43: 1626 | F43: Thusane | G43: Namtok | H43: Batnono | I43: Lord A.K | J43: Mutos | K43: Tauligra | M43: Namtok | N43: Lannister | P43: 2 | Q43: 7 | R43: 0 | S43: 4 | T43: 1 | U43: 6
A44: Ffuj35 | B44: 10 | E44: 1627 | F44: Vermoulu | G44: Tal | H44: Ffuj35 | I44: LouBew | J44: Aénaarion | K44: Sentanza | M44: Aénaarion | N44: Stark | P44: 4 | Q44: 3 | R44: 3 | S44: 2 | T44: 7 | U44: 1
A45: Zubeldia | B45: 9 | E45: 1628 | F45: Arya74 | G45: Zubeldia | H45: Jaeregan | I45: Moz | J45: Oulaoups | K45: Cocoyanouck | M45: Zubeldia | N45: Lannister | P45: 3 | Q45: 5 | R45: 4 | S45: 5 | T45: 0 | U45: 2
F47: Grille de Rencontres | P47: Nombre de chateaux
P51: =SUM(P2:P45) -> 141 | Q51: =SUM(Q2:Q45) -> 94 | R51: 154 | S51: 154 | T51: 181 | U51: 140

Sheet Classement
A1: Participants | B1: Score | C1: AlphaBeta | D1: Rang | F1: Rang | G1: Participant | H1: Score | J1: Tyrell | K1: Lannister | L1: Martell | M1: Baratheon | N1: Stark | O1: Greyjoy | P1: Score Ender | R1: Total Chateaux | T1: Temporaire | V1: Classement Final | W1: Participant | X1: Score
A2: ='Grille de rencontres'!A2 -> Sentanza | B2: =COUNTIF(Vainqueur,A2) -> 1 | C2: =B2-COUNTIF(Participants,"<="&A2)/1000 -> 0.964 | D2: =RANK(C2,AlphaBeta,0) -> 24 | F2: 1 | G2: =INDEX(Participants,MATCH(LARGE(AlphaBeta,ROWS($1:1)),AlphaBeta,0)) -> Ender | H2: =LARGE(Score,ROWS($1:1)) -> 5 | J2: 1 | L2: 1 | M2: 1 | N2: 1 | O2: 1 | P2: =J2*'Taux Ender'!$B$3+K2*'Taux Ender'!$B$4+L2*'Taux Ender'!$B$5+M2*'Taux Ender'!$B$6+N2*'Taux Ender'!$B$7+O2*'Taux Ender'!$B$8 -> 88.5 | R2: 37 | T2: =H2*10^7-P2*1+R2*10^4+C2*10^-3 -> 50369911.5 | V2: =F2 -> 1 | W2: =INDEX($G$2:$G$45,MATCH(LARGE($T$2:$T$45,ROWS($1:1)),$T$2:$T$45,0)) -> Ender | X2: =H2 -> 5
A3: ='Grille de rencontres'!A3 -> Tauligra | B3: 0 | C3: -0.039 | D3: 42 | F3: =F2+1 -> 2 | G3: =INDEX(Participants,MATCH(LARGE(AlphaBeta,ROWS($1:2)),AlphaBeta,0)) -> Tal | H3: =LARGE(Score,ROWS($1:2)) -> 3 | J3: 1 | M3: 1 | N3: 1 | P3: =J3*'Taux Ender'!$B$3+K3*'Taux Ender'!$B$4+L3*'Taux Ender'!$B$5+M3*'Taux Ender'!$B$6+N3*'Taux Ender'!$B$7+O3*'Taux Ender'!$B$8 -> 50.5 | R3: 31 | T3: =H3*10^7-P3*1+R3*10^4+C3*10^-3 -> 30309949.5 | V3: =F3 -> 2 | W3: =INDEX($G$2:$G$45,MATCH(LARGE($T$2:$T$45,ROWS($1:2)),$T$2:$T$45,0)) -> Tal | X3: =H3 -> 3
A4: ='Grille de rencontres'!A4 -> Batnono | B4: 0 | C4: -0.004 | D4: 26 | F4: =F3+1 -> 3 | G4: =INDEX(Participants,MATCH(LARGE(AlphaBeta,ROWS($1:3)),AlphaBeta,0)) -> Aénaarion | H4: =LARGE(Score,ROWS($1:3)) -> 2 | J4: 1 | N4: 1 | P4: =J4*'Taux Ender'!$B$3+K4*'Taux Ender'!$B$4+L4*'Taux Ender'!$B$5+M4*'Taux Ender'!$B$6+N4*'Taux Ender'!$B$7+O4*'Taux Ender'!$B$8 -> 32 | R4: 28 | T4: 20279968 | V4: 3 | W4: =INDEX($G$2:$G$45,MATCH(LARGE($T$2:$T$45,ROWS($1:3)),$T$2:$T$45,0)) -> Gambit | X4: 2
A5: ='Grille de rencontres'!A5 -> Ironmaidenx | B5: 1 | C5: 0.982 | D5: 18 | F5: 4 | G5: =INDEX(Participants,MATCH(LARGE(AlphaBeta,ROWS($1:4)),AlphaBeta,0)) -> Amombar | H5: =LARGE(Score,ROWS($1:4)) -> 2 | J5: 1 | O5: 1 | P5: =J5*'Taux Ender'!$B$3+K5*'Taux Ender'!$B$4+L5*'Taux Ender'!$B$5+M5*'Taux Ender'!$B$6+N5*'Taux Ender'!$B$7+O5*'Taux Ender'!$B$8 -> 36 | R5: 24 | T5: 20239964 | V5: 4 | W5: =INDEX($G$2:$G$45,MATCH(LARGE($T$2:$T$45,ROWS($1:4)),$T$2:$T$45,0)) -> Aénaarion | X5: 2
A6: ='Grille de rencontres'!A6 -> Ender | B6: 5 | C6: 4.989 | D6: 1 | F6: 5 | G6: =INDEX(Participants,MATCH(LARGE(AlphaBeta,ROWS($1:5)),AlphaBeta,0)) -> Arya74 | H6: =LARGE(Score,ROWS($1:5)) -> 2 | L6: 1 | N6: 1 | P6: =J6*'Taux Ender'!$B$3+K6*'Taux Ender'!$B$4+L6*'Taux Ender'!$B$5+M6*'Taux Ender'!$B$6+N6*'Taux Ender'!$B$7+O6*'Taux Ender'!$B$8 -> 34 | R6: 28 | T6: 20279966 | V6: 5 | W6: =INDEX($G$2:$G$45,MATCH(LARGE($T$2:$T$45,ROWS($1:5)),$T$2:$T$45,0)) -> Arya74 | X6: 2
A7: ='Grille de rencontres'!A7 -> Amombar | B7: 2 | C7: 1.998 | D7: 4 | F7: 6 | G7: =INDEX(Participants,MATCH(LARGE(AlphaBeta,ROWS($1:6)),AlphaBeta,0)) -> Blacksmiths | H7: =LARGE(Score,ROWS($1:6)) -> 2 | L7: 1 | M7: 1 | P7: =J7*'Taux Ender'!$B$3+K7*'Taux Ender'!$B$4+L7*'Taux Ender'!$B$5+M7*'Taux Ender'!$B$6+N7*'Taux Ender'!$B$7+O7*'Taux Ender'!$B$8 -> 31 | R7: 26 | T7: 20259969 | V7: 6 | W7: =INDEX($G$2:$G$45,MATCH(LARGE($T$2:$T$45,ROWS($1:6)),$T$2:$T$45,0)) -> Namtok | X7: 2
A8: ='Grille de rencontres'!A8 -> Garth | B8: 0 | C8: -0.015 | D8: 32 | F8: 7 | G8: =INDEX(Participants,MATCH(LARGE(AlphaBeta,ROWS($1:7)),AlphaBeta,0)) -> Clopinette | H8: =LARGE(Score,ROWS($1:7)) -> 2 | K8: 1 | N8: 1 | P8: =J8*'Taux Ender'!$B$3+K8*'Taux Ender'!$B$4+L8*'Taux Ender'!$B$5+M8*'Taux Ender'!$B$6+N8*'Taux Ender'!$B$7+O8*'Taux Ender'!$B$8 -> 33 | R8: 23 | T8: 20229967 | V8: 7 | W8: =INDEX($G$2:$G$45,MATCH(LARGE($T$2:$T$45,ROWS($1:7)),$T$2:$T$45,0)) -> Blacksmiths | X8: 2
A9: ='Grille de rencontres'!A9 -> Cocoyanouck | B9: 0 | C9: -0.007 | D9: 27 | F9: 8 | G9: =INDEX(Participants,MATCH(LARGE(AlphaBeta,ROWS($1:8)),AlphaBeta,0)) -> Gambit | H9: =LARGE(Score,ROWS($1:8)) -> 2 | M9: 1 | N9: 1 | P9: =J9*'Taux Ender'!$B$3+K9*'Taux Ender'!$B$4+L9*'Taux Ender'!$B$5+M9*'Taux Ender'!$B$6+N9*'Taux Ender'!$B$7+O9*'Taux Ender'!$B$8 -> 40 | R9: 29 | T9: 20289960 | V9: 8 | W9: =INDEX($G$2:$G$45,MATCH(LARGE($T$2:$T$45,ROWS($1:8)),$T$2:$T$45,0)) -> Zubeldia | X9: 2
A10: ='Grille de rencontres'!A10 -> Horadreem | B10: 0 | C10: -0.017 | D10: 33 | F10: 9 | G10: =INDEX(Participants,MATCH(LARGE(AlphaBeta,ROWS($1:9)),AlphaBeta,0)) -> Jaeregan | H10: =LARGE(Score,ROWS($1:9)) -> 2 | N10: 1 | O10: 1 | P10: =J10*'Taux Ender'!$B$3+K10*'Taux Ender'!$B$4+L10*'Taux Ender'!$B$5+M10*'Taux Ender'!$B$6+N10*'Taux Ender'!$B$7+O10*'Taux Ender'!$B$8 -> 47 | R10: 25 | T10: 20249953 | V10: 9 | W10: =INDEX($G$2:$G$45,MATCH(LARGE($T$2:$T$45,ROWS($1:9)),$T$2:$T$45,0)) -> Jaeregan | X10: 2
A11: ='Grille de rencontres'!A11 -> Aénaarion | B11: 2 | C11: 1.999 | D11: 3 | F11: 10 | G11: =INDEX(Participants,MATCH(LARGE(AlphaBeta,ROWS($1:10)),AlphaBeta,0)) -> Joukov | H11: =LARGE(Score,ROWS($1:10)) -> 2 | M11: 1 | O11: 1 | P11: =J11*'Taux Ender'!$B$3+K11*'Taux Ender'!$B$4+L11*'Taux Ender'!$B$5+M11*'Taux Ender'!$B$6+N11*'Taux Ender'!$B$7+O11*'Taux Ender'!$B$8 -> 44 | R11: 20 | T11: 20199956 | V11: 10 | W11: =INDEX($G$2:$G$45,MATCH(LARGE($T$2:$T$45,ROWS($1:10)),$T$2:$T$45,0)) -> Amombar | X11: 2
A12: ='Grille de rencontres'!A12 -> Tal | B12: 3 | C12: 2.962 | D12: 2 | F12: 11 | G12: =INDEX(Participants,MATCH(LARGE(AlphaBeta,ROWS($1:11)),AlphaBeta,0)) -> Linos | H12: =LARGE(Score,ROWS($1:11)) -> 2 | L12: 1 | N12: 1 | P12: =J12*'Taux Ender'!$B$3+K12*'Taux Ender'!$B$4+L12*'Taux Ender'!$B$5+M12*'Taux Ender'!$B$6+N12*'Taux Ender'!$B$7+O12*'Taux Ender'!$B$8 -> 34 | R12: 22 | T12: 20219966 | V12: 11 | W12: =INDEX($G$2:$G$45,MATCH(LARGE($T$2:$T$45,ROWS($1:11)),$T$2:$T$45,0)) -> Clopinette | X12: 2
A13: ='Grille de rencontres'!A13 -> Namtok | B13: 2 | C13: 1.971 | D13: 13 | F13: 12 | G13: =INDEX(Participants,MATCH(LARGE(AlphaBeta,ROWS($1:12)),AlphaBeta,0)) -> Moz | H13: =LARGE(Score,ROWS($1:12)) -> 2 | N13: 1 | O13: 1 | P13: =J13*'Taux Ender'!$B$3+K13*'Taux Ender'!$B$4+L13*'Taux Ender'!$B$5+M13*'Taux Ender'!$B$6+N13*'Taux Ender'!$B$7+O13*'Taux Ender'!$B$8 -> 47 | R13: 22 | T13: 20219953 | V13: 12 | W13: =INDEX($G$2:$G$45,MATCH(LARGE($T$2:$T$45,ROWS($1:12)),$T$2:$T$45,0)) -> Linos | X13: 2
A14: ='Grille de rencontres'!A14 -> Jake The Dog | B14: 1 | C14: 0.98 | D14: 19 | F14: 13 | G14: =INDEX(Participants,MATCH(LARGE(AlphaBeta,ROWS($1:13)),AlphaBeta,0)) -> Namtok | H14: =LARGE(Score,ROWS($1:13)) -> 2 | K14: 1 | L14: 1 | P14: =J14*'Taux Ender'!$B$3+K14*'Taux Ender'!$B$4+L14*'Taux Ender'!$B$5+M14*'Taux Ender'!$B$6+N14*'Taux Ender'!$B$7+O14*'Taux Ender'!$B$8 -> 24 | R14: 27 | T14: 20269976 | V14: 13 | W14: =INDEX($G$2:$G$45,MATCH(LARGE($T$2:$T$45,ROWS($1:13)),$T$2:$T$45,0)) -> Vent Gris | X14: 2
A15: ='Grille de rencontres'!A15 -> Gambit | B15: 2 | C15: 1.986 | D15: 8 | F15: 14 | G15: =INDEX(Participants,MATCH(LARGE(AlphaBeta,ROWS($1:14)),AlphaBeta,0)) -> Vent Gris | H15: =LARGE(Score,ROWS($1:14)) -> 2 | L15: 1 | N15: 1 | P15: =J15*'Taux Ender'!$B$3+K15*'Taux Ender'!$B$4+L15*'Taux Ender'!$B$5+M15*'Taux Ender'!$B$6+N15*'Taux Ender'!$B$7+O15*'Taux Ender'!$B$8 -> 34 | R15: 22 | T15: 20219966 | V15: 14 | W15: =INDEX($G$2:$G$45,MATCH(LARGE($T$2:$T$45,ROWS($1:14)),$T$2:$T$45,0)) -> Moz | X15: 2
A16: ='Grille de rencontres'!A16 -> WillamK | B16: 0 | C16: -0.043 | D16: 44 | F16: 15 | G16: =INDEX(Participants,MATCH(LARGE(AlphaBeta,ROWS($1:15)),AlphaBeta,0)) -> Zubeldia | H16: =LARGE(Score,ROWS($1:15)) -> 2 | K16: 1 | O16: 1 | P16: =J16*'Taux Ender'!$B$3+K16*'Taux Ender'!$B$4+L16*'Taux Ender'!$B$5+M16*'Taux Ender'!$B$6+N16*'Taux Ender'!$B$7+O16*'Taux Ender'!$B$8 -> 37 | R16: 25 | T16: 20249963 | V16: 15 | W16: =INDEX($G$2:$G$45,MATCH(LARGE($T$2:$T$45,ROWS($1:15)),$T$2:$T$45,0)) -> Joukov | X16: 2
A17: ='Grille de rencontres'!A17 -> Kokunut38 | B17: 1 | C17: 0.978 | D17: 20 | F17: 16 | G17: =INDEX(Participants,MATCH(LARGE(AlphaBeta,ROWS($1:16)),AlphaBeta,0)) -> Dodger | H17: =LARGE(Score,ROWS($1:16)) -> 1 | N17: 1 | P17: =J17*'Taux Ender'!$B$3+K17*'Taux Ender'!$B$4+L17*'Taux Ender'!$B$5+M17*'Taux Ender'!$B$6+N17*'Taux Ender'!$B$7+O17*'Taux Ender'!$B$8 -> 21.5 | R17: 19 | T17: 10189978.5 | V17: 16 | W17: =INDEX($G$2:$G$45,MATCH(LARGE($T$2:$T$45,ROWS($1:16)),$T$2:$T$45,0)) -> Niamor723 | X17: 1
A18: ='Grille de rencontres'!A18 -> Minos 83 | B18: 0 | C18: -0.026 | D18: 35 | F18: 17 | G18: =INDEX(Participants,MATCH(LARGE(AlphaBeta,ROWS($1:17)),AlphaBeta,0)) -> Gromrek | H18: =LARGE(Score,ROWS($1:17)) -> 1 | J18: 1 | P18: =J18*'Taux Ender'!$B$3+K18*'Taux Ender'!$B$4+L18*'Taux Ender'!$B$5+M18*'Taux Ender'!$B$6+N18*'Taux Ender'!$B$7+O18*'Taux Ender'!$B$8 -> 10.5 | R18: 22 | T18: 10219989.5 | V18: 17 | W18: =INDEX($G$2:$G$45,MATCH(LARGE($T$2:$T$45,ROWS($1:17)),$T$2:$T$45,0)) -> Vermoulu | X18: 1
A19: ='Grille de rencontres'!A19 -> Clopinette | B19: 2 | C19: 1.994 | D19: 7 | F19: 18 | G19: =INDEX(Participants,MATCH(LARGE(AlphaBeta,ROWS($1:18)),AlphaBeta,0)) -> Ironmaidenx | H19: =LARGE(Score,ROWS($1:18)) -> 1 | N19: 1 | P19: =J19*'Taux Ender'!$B$3+K19*'Taux Ender'!$B$4+L19*'Taux Ender'!$B$5+M19*'Taux Ender'!$B$6+N19*'Taux Ender'!$B$7+O19*'Taux Ender'!$B$8 -> 21.5 | R19: 19 | T19: 10189978.5 | V19: 18 | W19: =INDEX($G$2:$G$45,MATCH(LARGE($T$2:$T$45,ROWS($1:18)),$T$2:$T$45,0)) -> Gromrek | X19: 1
A20: ='Grille de rencontres'!A20 -> Linos | B20: 2 | C20: 1.977 | D20: 11 | F20: 19 | G20: =INDEX(Participants,MATCH(LARGE(AlphaBeta,ROWS($1:19)),AlphaBeta,0)) -> Jake The Dog | H20: =LARGE(Score,ROWS($1:19)) -> 1 | O20: 1 | P20: =J20*'Taux Ender'!$B$3+K20*'Taux Ender'!$B$4+L20*'Taux Ender'!$B$5+M20*'Taux Ender'!$B$6+N20*'Taux Ender'!$B$7+O20*'Taux Ender'!$B$8 -> 25.5 | R20: 21 | T20: 10209974.5 | V20: 19 | W20: =INDEX($G$2:$G$45,MATCH(LARGE($T$2:$T$45,ROWS($1:19)),$T$2:$T$45,0)) -> Jake The Dog | X20: 1
A21: ='Grille de rencontres'!A21 -> Elyrioss | B21: 0 | C21: -0.01 | D21: 29 | F21: 20 | G21: =INDEX(Participants,MATCH(LARGE(AlphaBeta,ROWS($1:20)),AlphaBeta,0)) -> Kokunut38 | H21: =LARGE(Score,ROWS($1:20)) -> 1 | N21: 1 | P21: =J21*'Taux Ender'!$B$3+K21*'Taux Ender'!$B$4+L21*'Taux Ender'!$B$5+M21*'Taux Ender'!$B$6+N21*'Taux Ender'!$B$7+O21*'Taux Ender'!$B$8 -> 21.5 | R21: 16 | T21: 10159978.5 | V21: 20 | W21: =INDEX($G$2:$G$45,MATCH(LARGE($T$2:$T$45,ROWS($1:20)),$T$2:$T$45,0)) -> Sentanza | X21: 1
A22: ='Grille de rencontres'!A22 -> Jaeregan | B22: 2 | C22: 1.981 | D22: 9 | F22: 21 | G22: =INDEX(Participants,MATCH(LARGE(AlphaBeta,ROWS($1:21)),AlphaBeta,0)) -> LouBew | H22: =LARGE(Score,ROWS($1:21)) -> 1 | N22: 1 | P22: =J22*'Taux Ender'!$B$3+K22*'Taux Ender'!$B$4+L22*'Taux Ender'!$B$5+M22*'Taux Ender'!$B$6+N22*'Taux Ender'!$B$7+O22*'Taux Ender'!$B$8 -> 21.5 | R22: 17 | T22: 10169978.5 | V22: 21 | W22: =INDEX($G$2:$G$45,MATCH(LARGE($T$2:$T$45,ROWS($1:21)),$T$2:$T$45,0)) -> Ironmaidenx | X22: 1
A23: ='Grille de rencontres'!A23 -> Arya74 | B23: 2 | C23: 1.997 | D23: 5 | F23: 22 | G23: =INDEX(Participants,MATCH(LARGE(AlphaBeta,ROWS($1:22)),AlphaBeta,0)) -> Niamor723 | H23: =LARGE(Score,ROWS($1:22)) -> 1 | N23: 1 | P23: =J23*'Taux Ender'!$B$3+K23*'Taux Ender'!$B$4+L23*'Taux Ender'!$B$5+M23*'Taux Ender'!$B$6+N23*'Taux Ender'!$B$7+O23*'Taux Ender'!$B$8 -> 21.5 | R23: 23 | T23: 10229978.5 | V23: 22 | W23: =INDEX($G$2:$G$45,MATCH(LARGE($T$2:$T$45,ROWS($1:22)),$T$2:$T$45,0)) -> Dodger | X23: 1
A24: ='Grille de rencontres'!A24 -> Shyria | B24: 0 | C24: -0.037 | D24: 41 | F24: 23 | G24: =INDEX(Participants,MATCH(LARGE(AlphaBeta,ROWS($1:23)),AlphaBeta,0)) -> Pietou | H24: =LARGE(Score,ROWS($1:23)) -> 1 | O24: 1 | P24: =J24*'Taux Ender'!$B$3+K24*'Taux Ender'!$B$4+L24*'Taux Ender'!$B$5+M24*'Taux Ender'!$B$6+N24*'Taux Ender'!$B$7+O24*'Taux Ender'!$B$8 -> 25.5 | R24: 18 | T24: 10179974.5 | V24: 23 | W24: =INDEX($G$2:$G$45,MATCH(LARGE($T$2:$T$45,ROWS($1:23)),$T$2:$T$45,0)) -> Pietou | X24: 1
A25: ='Grille de rencontres'!A25 -> Moz | B25: 2 | C25: 1.973 | D25: 12 | F25: 24 | G25: =INDEX(Participants,MATCH(LARGE(AlphaBeta,ROWS($1:24)),AlphaBeta,0)) -> Sentanza | H25: =LARGE(Score,ROWS($1:24)) -> 1 | M25: 1 | P25: =J25*'Taux Ender'!$B$3+K25*'Taux Ender'!$B$4+L25*'Taux Ender'!$B$5+M25*'Taux Ender'!$B$6+N25*'Taux Ender'!$B$7+O25*'Taux Ender'!$B$8 -> 18.5 | R25: 20 | T25: 10199981.5 | V25: 24 | W25: =INDEX($G$2:$G$45,MATCH(LARGE($T$2:$T$45,ROWS($1:24)),$T$2:$T$45,0)) -> LouBew | X25: 1
A26: ='Grille de rencontres'!A26 -> Sagarmatha | B26: 0 | C26: -0.035 | D26: 40 | F26: 25 | G26: =INDEX(Participants,MATCH(LARGE(AlphaBeta,ROWS($1:25)),AlphaBeta,0)) -> Vermoulu | H26: =LARGE(Score,ROWS($1:25)) -> 1 | O26: 1 | P26: =J26*'Taux Ender'!$B$3+K26*'Taux Ender'!$B$4+L26*'Taux Ender'!$B$5+M26*'Taux Ender'!$B$6+N26*'Taux Ender'!$B$7+O26*'Taux Ender'!$B$8 -> 25.5 | R26: 23 | T26: 10229974.5 | V26: 25 | W26: =INDEX($G$2:$G$45,MATCH(LARGE($T$2:$T$45,ROWS($1:25)),$T$2:$T$45,0)) -> Kokunut38 | X26: 1
A27: ='Grille de rencontres'!A27 -> Oulaoups | B27: 0 | C27: -0.032 | D27: 38 | F27: 26 | G27: =INDEX(Participants,MATCH(LARGE(AlphaBeta,ROWS($1:26)),AlphaBeta,0)) -> Batnono | H27: =LARGE(Score,ROWS($1:26)) -> 0 | P27: =J27*'Taux Ender'!$B$3+K27*'Taux Ender'!$B$4+L27*'Taux Ender'!$B$5+M27*'Taux Ender'!$B$6+N27*'Taux Ender'!$B$7+O27*'Taux Ender'!$B$8 -> 0 | R27: 11 | T27: 110000 | V27: 26 | W27: =INDEX($G$2:$G$45,MATCH(LARGE($T$2:$T$45,ROWS($1:26)),$T$2:$T$45,0)) -> Ffuj35 | X27: 0
A28: ='Grille de rencontres'!A28 -> Possom | B28: 0 | C28: -0.034 | D28: 39 | F28: 27 | G28: =INDEX(Participants,MATCH(LARGE(AlphaBeta,ROWS($1:27)),AlphaBeta,0)) -> Cocoyanouck | H28: =LARGE(Score,ROWS($1:27)) -> 0 | P28: =J28*'Taux Ender'!$B$3+K28*'Taux Ender'!$B$4+L28*'Taux Ender'!$B$5+M28*'Taux Ender'!$B$6+N28*'Taux Ender'!$B$7+O28*'Taux Ender'!$B$8 -> 0 | R28: 16 | T28: 160000 | V28: 27 | W28: =INDEX($G$2:$G$45,MATCH(LARGE($T$2:$T$45,ROWS($1:27)),$T$2:$T$45,0)) -> WillamK | X28: 0
A29: ='Grille de rencontres'!A29 -> NejiH | B29: 0 | C29: -0.03 | D29: 37 | F29: 28 | G29: =INDEX(Participants,MATCH(LARGE(AlphaBeta,ROWS($1:28)),AlphaBeta,0)) -> Delapaille | H29: =LARGE(Score,ROWS($1:28)) -> 0 | P29: =J29*'Taux Ender'!$B$3+K29*'Taux Ender'!$B$4+L29*'Taux Ender'!$B$5+M29*'Taux Ender'!$B$6+N29*'Taux Ender'!$B$7+O29*'Taux Ender'!$B$8 -> 0 | R29: 10 | T29: 99999.99997 | V29: 28 | W29: =INDEX($G$2:$G$45,MATCH(LARGE($T$2:$T$45,ROWS($1:28)),$T$2:$T$45,0)) -> Lord A.K | X29: 0
A30: ='Grille de rencontres'!A30 -> Delapaille | B30: 0 | C30: -0.008 | D30: 28 | F30: 29 | G30: =INDEX(Participants,MATCH(LARGE(AlphaBeta,ROWS($1:29)),AlphaBeta,0)) -> Elyrioss | H30: =LARGE(Score,ROWS($1:29)) -> 0 | P30: =J30*'Taux Ender'!$B$3+K30*'Taux Ender'!$B$4+L30*'Taux Ender'!$B$5+M30*'Taux Ender'!$B$6+N30*'Taux Ender'!$B$7+O30*'Taux Ender'!$B$8 -> 0 | R30: 15 | T30: 150000 | V30: 29 | W30: =INDEX($G$2:$G$45,MATCH(LARGE($T$2:$T$45,ROWS($1:29)),$T$2:$T$45,0)) -> Tauligra | X30: 0
A31: ='Grille de rencontres'!A31 -> Vermoulu | B31: 1 | C31: 0.958 | D31: 25 | F31: 30 | G31: =INDEX(Participants,MATCH(LARGE(AlphaBeta,ROWS($1:30)),AlphaBeta,0)) -> Ffuj35 | H31: =LARGE(Score,ROWS($1:30)) -> 0 | P31: =J31*'Taux Ender'!$B$3+K31*'Taux Ender'!$B$4+L31*'Taux Ender'!$B$5+M31*'Taux Ender'!$B$6+N31*'Taux Ender'!$B$7+O31*'Taux Ender'!$B$8 -> 0 | R31: 23 | T31: 230000.001 | V31: 30 | W31: =INDEX($G$2:$G$45,MATCH(LARGE($T$2:$T$45,ROWS($1:30)),$T$2:$T$45,0)) -> Minos 83 | X31: 0
A32: ='Grille de rencontres'!A32 -> Mutos | B32: 0 | C32: -0.028 | D32: 36 | F32: 31 | G32: =INDEX(Participants,MATCH(LARGE(AlphaBeta,ROWS($1:31)),AlphaBeta,0)) -> Forcerouge78 | H32: =LARGE(Score,ROWS($1:31)) -> 0 | P32: =J32*'Taux Ender'!$B$3+K32*'Taux Ender'!$B$4+L32*'Taux Ender'!$B$5+M32*'Taux Ender'!$B$6+N32*'Taux Ender'!$B$7+O32*'Taux Ender'!$B$8 -> 0 | R32: 12 | T32: 120000 | V32: 31 | W32: =INDEX($G$2:$G$45,MATCH(LARGE($T$2:$T$45,ROWS($1:31)),$T$2:$T$45,0)) -> Cocoyanouck | X32: 0
A33: ='Grille de rencontres'!A33 -> Forcerouge78 | B33: 0 | C33: -0.013 | D33: 31 | F33: 32 | G33: =INDEX(Participants,MATCH(LARGE(AlphaBeta,ROWS($1:32)),AlphaBeta,0)) -> Garth | H33: =LARGE(Score,ROWS($1:32)) -> 0 | P33: =J33*'Taux Ender'!$B$3+K33*'Taux Ender'!$B$4+L33*'Taux Ender'!$B$5+M33*'Taux Ender'!$B$6+N33*'Taux Ender'!$B$7+O33*'Taux Ender'!$B$8 -> 0 | R33: 14 | T33: 140000 | V33: 32 | W33: =INDEX($G$2:$G$45,MATCH(LARGE($T$2:$T$45,ROWS($1:32)),$T$2:$T$45,0)) -> Sagarmatha | X33: 0
A34: ='Grille de rencontres'!A34 -> Thusane | B34: 0 | C34: -0.04 | D34: 43 | F34: 33 | G34: =INDEX(Participants,MATCH(LARGE(AlphaBeta,ROWS($1:33)),AlphaBeta,0)) -> Horadreem | H34: =LARGE(Score,ROWS($1:33)) -> 0 | P34: =J34*'Taux Ender'!$B$3+K34*'Taux Ender'!$B$4+L34*'Taux Ender'!$B$5+M34*'Taux Ender'!$B$6+N34*'Taux Ender'!$B$7+O34*'Taux Ender'!$B$8 -> 0 | R34: 15 | T34: 150000 | V34: 33 | W34: =INDEX($G$2:$G$45,MATCH(LARGE($T$2:$T$45,ROWS($1:33)),$T$2:$T$45,0)) -> Elyrioss | X34: 0
A35: ='Grille de rencontres'!A35 -> Pietou | B35: 1 | C35: 0.967 | D35: 23 | F35: 34 | G35: =INDEX(Participants,MATCH(LARGE(AlphaBeta,ROWS($1:34)),AlphaBeta,0)) -> Lord A.K | H35: =LARGE(Score,ROWS($1:34)) -> 0 | P35: =J35*'Taux Ender'!$B$3+K35*'Taux Ender'!$B$4+L35*'Taux Ender'!$B$5+M35*'Taux Ender'!$B$6+N35*'Taux Ender'!$B$7+O35*'Taux Ender'!$B$8 -> 0 | R35: 20 | T35: 200000.001 | V35: 34 | W35: =INDEX($G$2:$G$45,MATCH(LARGE($T$2:$T$45,ROWS($1:34)),$T$2:$T$45,0)) -> Thusane | X35: 0
A36: ='Grille de rencontres'!A36 -> LouBew | B36: 1 | C36: 0.975 | D36: 21 | F36: 35 | G36: =INDEX(Participants,MATCH(LARGE(AlphaBeta,ROWS($1:35)),AlphaBeta,0)) -> Minos 83 | H36: =LARGE(Score,ROWS($1:35)) -> 0 | P36: =J36*'Taux Ender'!$B$3+K36*'Taux Ender'!$B$4+L36*'Taux Ender'!$B$5+M36*'Taux Ender'!$B$6+N36*'Taux Ender'!$B$7+O36*'Taux Ender'!$B$8 -> 0 | R36: 18 | T36: 180000.001 | V36: 35 | W36: =INDEX($G$2:$G$45,MATCH(LARGE($T$2:$T$45,ROWS($1:35)),$T$2:$T$45,0)) -> Horadreem | X36: 0
A37: ='Grille de rencontres'!A37 -> Joukov | B37: 2 | C37: 1.979 | D37: 10 | F37: 36 | G37: =INDEX(Participants,MATCH(LARGE(AlphaBeta,ROWS($1:36)),AlphaBeta,0)) -> Mutos | H37: =LARGE(Score,ROWS($1:36)) -> 0 | P37: =J37*'Taux Ender'!$B$3+K37*'Taux Ender'!$B$4+L37*'Taux Ender'!$B$5+M37*'Taux Ender'!$B$6+N37*'Taux Ender'!$B$7+O37*'Taux Ender'!$B$8 -> 0 | R37: 11 | T37: 110000.002 | V37: 36 | W37: =INDEX($G$2:$G$45,MATCH(LARGE($T$2:$T$45,ROWS($1:36)),$T$2:$T$45,0)) -> Shyria | X37: 0
A38: ='Grille de rencontres'!A38 -> Vent Gris | B38: 2 | C38: 1.959 | D38: 14 | F38: 37 | G38: =INDEX(Participants,MATCH(LARGE(AlphaBeta,ROWS($1:37)),AlphaBeta,0)) -> NejiH | H38: =LARGE(Score,ROWS($1:37)) -> 0 | P38: =J38*'Taux Ender'!$B$3+K38*'Taux Ender'!$B$4+L38*'Taux Ender'!$B$5+M38*'Taux Ender'!$B$6+N38*'Taux Ender'!$B$7+O38*'Taux Ender'!$B$8 -> 0 | R38: 14 | T38: 140000.002 | V38: 37 | W38: =INDEX($G$2:$G$45,MATCH(LARGE($T$2:$T$45,ROWS($1:37)),$T$2:$T$45,0)) -> NejiH | X38: 0
A39: ='Grille de rencontres'!A39 -> Lord A.K | B39: 0 | C39: -0.024 | D39: 34 | F39: 38 | G39: =INDEX(Participants,MATCH(LARGE(AlphaBeta,ROWS($1:38)),AlphaBeta,0)) -> Oulaoups | H39: =LARGE(Score,ROWS($1:38)) -> 0 | P39: =J39*'Taux Ender'!$B$3+K39*'Taux Ender'!$B$4+L39*'Taux Ender'!$B$5+M39*'Taux Ender'!$B$6+N39*'Taux Ender'!$B$7+O39*'Taux Ender'!$B$8 -> 0 | R39: 3 | T39: 29999.99998 | V39: 38 | W39: =INDEX($G$2:$G$45,MATCH(LARGE($T$2:$T$45,ROWS($1:38)),$T$2:$T$45,0)) -> Garth | X39: 0
A40: ='Grille de rencontres'!A40 -> Gromrek | B40: 1 | C40: 0.984 | D40: 17 | F40: 39 | G40: =INDEX(Participants,MATCH(LARGE(AlphaBeta,ROWS($1:39)),AlphaBeta,0)) -> Possom | H40: =LARGE(Score,ROWS($1:39)) -> 0 | P40: =J40*'Taux Ender'!$B$3+K40*'Taux Ender'!$B$4+L40*'Taux Ender'!$B$5+M40*'Taux Ender'!$B$6+N40*'Taux Ender'!$B$7+O40*'Taux Ender'!$B$8 -> 0 | R40: 11 | T40: 110000.001 | V40: 39 | W40: =INDEX($G$2:$G$45,MATCH(LARGE($T$2:$T$45,ROWS($1:39)),$T$2:$T$45,0)) -> Forcerouge78 | X40: 0
A41: ='Grille de rencontres'!A41 -> Dodger | B41: 1 | C41: 0.991 | D41: 16 | F41: 40 | G41: =INDEX(Participants,MATCH(LARGE(AlphaBeta,ROWS($1:40)),AlphaBeta,0)) -> Sagarmatha | H41: =LARGE(Score,ROWS($1:40)) -> 0 | P41: =J41*'Taux Ender'!$B$3+K41*'Taux Ender'!$B$4+L41*'Taux Ender'!$B$5+M41*'Taux Ender'!$B$6+N41*'Taux Ender'!$B$7+O41*'Taux Ender'!$B$8 -> 0 | R41: 15 | T41: 150000.001 | V41: 40 | W41: =INDEX($G$2:$G$45,MATCH(LARGE($T$2:$T$45,ROWS($1:40)),$T$2:$T$45,0)) -> Mutos | X41: 0
A42: ='Grille de rencontres'!A42 -> Blacksmiths | B42: 2 | C42: 1.995 | D42: 6 | F42: 41 | G42: =INDEX(Participants,MATCH(LARGE(AlphaBeta,ROWS($1:41)),AlphaBeta,0)) -> Shyria | H42: =LARGE(Score,ROWS($1:41)) -> 0 | P42: =J42*'Taux Ender'!$B$3+K42*'Taux Ender'!$B$4+L42*'Taux Ender'!$B$5+M42*'Taux Ender'!$B$6+N42*'Taux Ender'!$B$7+O42*'Taux Ender'!$B$8 -> 0 | R42: 14 | T42: 140000.002 | V42: 41 | W42: =INDEX($G$2:$G$45,MATCH(LARGE($T$2:$T$45,ROWS($1:41)),$T$2:$T$45,0)) -> Possom | X42: 0
A43: ='Grille de rencontres'!A43 -> Niamor723 | B43: 1 | C43: 0.969 | D43: 22 | F43: 42 | G43: =INDEX(Participants,MATCH(LARGE(AlphaBeta,ROWS($1:42)),AlphaBeta,0)) -> Tauligra | H43: =LARGE(Score,ROWS($1:42)) -> 0 | P43: =J43*'Taux Ender'!$B$3+K43*'Taux Ender'!$B$4+L43*'Taux Ender'!$B$5+M43*'Taux Ender'!$B$6+N43*'Taux Ender'!$B$7+O43*'Taux Ender'!$B$8 -> 0 | R43: 19 | T43: 190000.001 | V43: 42 | W43: =INDEX($G$2:$G$45,MATCH(LARGE($T$2:$T$45,ROWS($1:42)),$T$2:$T$45,0)) -> Batnono | X43: 0
A44: ='Grille de rencontres'!A44 -> Ffuj35 | B44: 0 | C44: -0.012 | D44: 30 | F44: 43 | G44: =INDEX(Participants,MATCH(LARGE(AlphaBeta,ROWS($1:43)),AlphaBeta,0)) -> Thusane | H44: =LARGE(Score,ROWS($1:43)) -> 0 | P44: =J44*'Taux Ender'!$B$3+K44*'Taux Ender'!$B$4+L44*'Taux Ender'!$B$5+M44*'Taux Ender'!$B$6+N44*'Taux Ender'!$B$7+O44*'Taux Ender'!$B$8 -> 0 | R44: 15 | T44: 150000 | V44: 43 | W44: =INDEX($G$2:$G$45,MATCH(LARGE($T$2:$T$45,ROWS($1:43)),$T$2:$T$45,0)) -> Delapaille | X44: 0
A45: ='Grille de rencontres'!A45 -> Zubeldia | B45: 2 | C45: 1.956 | D45: 15 | F45: 44 | G45: =INDEX(Participants,MATCH(LARGE(AlphaBeta,ROWS($1:44)),AlphaBeta,0)) -> WillamK | H45: =LARGE(Score,ROWS($1:44)) -> 0 | P45: =J45*'Taux Ender'!$B$3+K45*'Taux Ender'!$B$4+L45*'Taux Ender'!$B$5+M45*'Taux Ender'!$B$6+N45*'Taux Ender'!$B$7+O45*'Taux Ender'!$B$8 -> 0 | R45: 21 | T45: 210000.002 | V45: 44 | W45: =INDEX($G$2:$G$45,MATCH(LARGE($T$2:$T$45,ROWS($1:44)),$T$2:$T$45,0)) -> Oulaoups | X45: 0
V47: Classement Final
J48: =SUM(J2:J45) -> 5 | K48: 3 | L48: 6 | M48: 6 | N48: 15 | O48: 9

Sheet Proposition
A1: Participants | B1: Score | C1: col à masquer | D1: Rang | E1: Nom | F1: Score | R1: Chateaux | X1: Pour Vérifier
A2: Kevin | B2: 2.75 | C2: =IF(OR(A2="",B2=""),"",B2+ROWS($1:1)/10000-COUNTIF(A$2:A$8,"<="&A2)/1000) -> 2.7451 | D2: =IF(OR(A2="",B2=""),"",RANK(LARGE($B$2:$B$8,ROWS($1:1)),$B$2:$B$8,0)) -> 1 | E2: =IF(OR(A2,B2=""),"",INDEX($A$2:$A$8,MATCH(LARGE($C$2:$C$8,ROW(A1)),$C$2:$C$8,0))) -> aa | F2: =IF(OR(A2="",B2=""),"",INDEX(B$2:C$8,MATCH(LARGE(C$2:C$8,ROWS($1:1)),C$2:C$8,0),1)) -> 2.75
A3: Britney | B3: 2.75 | C3: =IF(OR(A3="",B3=""),"",B3+ROWS($1:2)/10000-COUNTIF(A$2:A$6,"<="&A3)/1000) -> 2.7482 | D3: =IF(OR(A3="",B3=""),"",RANK(LARGE($B$2:$B$8,ROWS($1:2)),$B$2:$B$8,0)) -> 1 | E3: =IF(OR(A3,B3=""),"",INDEX($A$2:$A$8,MATCH(LARGE($C$2:$C$8,ROW(A2)),$C$2:$C$8,0))) -> Alfred | F3: =IF(OR(A3="",B3=""),"",INDEX(B$2:C$8,MATCH(LARGE(C$2:C$8,ROWS($1:2)),C$2:C$8,0),1)) -> 2.75 | O3: Vainqueur | P3: Famille | R3: A | S3: B | T3: C | U3: D | V3: E | W3: F | X3: Total
A4: Alfred | B4: 2.75 | C4: =IF(OR(A4="",B4=""),"",B4+ROWS($1:3)/10000-COUNTIF(A$2:A$6,"<="&A4)/1000) -> 2.7493 | D4: =IF(OR(A4="",B4=""),"",RANK(LARGE($B$2:$B$8,ROWS($1:3)),$B$2:$B$8,0)) -> 1 | E4: Britney | F4: =IF(OR(A4="",B4=""),"",INDEX(B$2:C$8,MATCH(LARGE(C$2:C$8,ROWS($1:3)),C$2:C$8,0),1)) -> 2.75 | O4: Kevin | P4: F
A5: Todd | B5: 2.5 | C5: =IF(OR(A5="",B5=""),"",B5+ROWS($1:4)/10000-COUNTIF(A$2:A$6,"<="&A5)/1000) -> 2.4954 | D5: =IF(OR(A5="",B5=""),"",RANK(LARGE($B$2:$B$8,ROWS($1:4)),$B$2:$B$8,0)) -> 1 | E5: Julie | F5: =IF(OR(A5="",B5=""),"",INDEX(B$2:C$8,MATCH(LARGE(C$2:C$8,ROWS($1:4)),C$2:C$8,0),1)) -> 2.75 | O5: Julie | P5: A
A6: Julie | B6: 2.75 | C6: =IF(OR(A6="",B6=""),"",B6+ROWS($1:5)/10000-COUNTIF(A$2:A$6,"<="&A6)/1000) -> 2.7475 | D6: =IF(OR(A6="",B6=""),"",RANK(LARGE($B$2:$B$8,ROWS($1:5)),$B$2:$B$8,0)) -> 1 | E6: Kevin | F6: =IF(OR(A6="",B6=""),"",INDEX(B$2:C$8,MATCH(LARGE(C$2:C$8,ROWS($1:5)),C$2:C$8,0),1)) -> 2.75 | O6: Kevin | P6: D
A7: aa | B7: 2.75 | C7: =IF(OR(A7="",B7=""),"",B7+ROWS($1:6)/10000-COUNTIF(A$2:A$6,"<="&A7)/1000) -> 2.7506 | D7: =IF(OR(A7="",B7=""),"",RANK(LARGE($B$2:$B$8,ROWS($1:6)),$B$2:$B$8,0)) -> 6 | E7: Todd | F7: =IF(OR(A7="",B7=""),"",INDEX(B$2:C$8,MATCH(LARGE(C$2:C$8,ROWS($1:6)),C$2:C$8,0),1)) -> 2.5 | O7: Alfred | P7: E
C8: =IF(OR(A8="",B8=""),"",B8+ROWS($1:7)/10000-COUNTIF(A$2:A$6,"<="&A8)/1000) ->  | D8: =IF(OR(A8="",B8=""),"",RANK(LARGE($B$2:$B$8,ROWS($1:7)),$B$2:$B$8,0)) ->  | F8: =IF(OR(A8="",B8=""),"",INDEX(B$2:C$8,MATCH(LARGE(C$2:C$8,ROWS($1:7)),C$2:C$8,0),1)) ->  | O8: Kevin | P8: B
O9: Todd | P9: C
O10: Julie | P10: F
O11: Britney | P11: F
O12: Britney | P12: B
B13: Nb.si(a$2:a$8; avec le critère inférieur ou égal à la cellule a2) donne le rang alphabétique de la cellule A2 dans la plage A2:A8 | O13: aa | P13: E
C14: le rang divisé par 1000 est oté du score initial ;en le rajoutant les égalités seraient classées par ordre alpha inverse
A15: ="Rang alpha "&A2&" >" -> Rang alpha Kevin > | B15: =COUNTIF(A$2:A$8,"<="&A2) -> 5 | C15: =B15/1000 -> 0.005
A16: ="Rang alpha "&A3&" >" -> Rang alpha Britney > | B16: =COUNTIF(A$2:A$8,"<="&A3) -> 3 | C16: =B16/1000 -> 0.003
A17: Rang alpha Alfred > | B17: 2 | C17: 0.002
A18: Rang alpha Todd > | B18: 6 | C18: 0.006
A19: Rang alpha Julie > | B19: 4 | C19: 0.004
A20: Rang alpha aa > | B20: 1 | C20: 0.001
A21: Rang alpha > | B21: 0 | C21: 0
C22: le diviseur de la valeur du nom est inférieur à celui des lignes pour qu'il est priorité
A30: Participants | B30: Score | C30: Colonne | D30: Rang | E30: Participant | F30: Score | H30: A | I30: B | J30: C | K30: D | L30: E | M30: F | N30: Score | P30: Rang | Q30: Participant | R30: Score | S30: Parties Terminées
A31: Kevin | B31: =COUNTIF($O$4:$O$13,A31) -> 3 | C31: =B31-COUNTIF($A$31:$A$36,"<="&A31)/1000 -> 2.995 | D31: =RANK(LARGE($B$31:$B$36,ROWS($1:1)),$B$31:$B$36,0) -> 1 | E31: =INDEX($A$31:$A$36,MATCH(LARGE($C$31:$C$36,ROWS($1:1)),$C$31:$C$36,0)) -> Kevin | F31: =LARGE($B$31:$B$36,ROWS($1:1)) -> 3 | H31: =COUNTIFS($O$4:$O$13,$E31,$P$4:$P$13,H$30) -> 0 | I31: =COUNTIFS($O$4:$O$13,$E31,$P$4:$P$13,I$30) -> 1 | J31: 0 | K31: 1 | L31: 0 | M31: 1 | N31: =F31*10^7+H31*10^6+I31*10^5+J31*10^4+K31*10^3+L31*10^2+M31*10^1-COUNTIF($E$31:$E$36,"<="&E31) -> 30101005 | P31: =D31 -> 1 | Q31: =INDEX($E$31:$E$36,MATCH(LARGE($N$31:$N$36,ROWS($1:1)),$N$31:$N$36,0)) -> Kevin
A32: Britney | B32: 2 | C32: =B32-COUNTIF($A$31:$A$36,"<="&A32)/1000 -> 1.997 | D32: =RANK(LARGE($B$31:$B$36,ROWS($1:2)),$B$31:$B$36,0) -> 2 | E32: =INDEX($A$31:$A$36,MATCH(LARGE($C$31:$C$36,ROWS($1:2)),$C$31:$C$36,0)) -> Britney | F32: =LARGE($B$31:$B$36,ROWS($1:2)) -> 2 | H32: 0 | I32: 1 | J32: 0 | K32: 0 | L32: 0 | M32: 1 | N32: 20100007 | P32: 2 | Q32: =INDEX($E$31:$E$36,MATCH(LARGE($N$31:$N$36,ROWS($1:2)),$N$31:$N$36,0)) -> Julie
A33: Alfred | B33: 1 | C33: =B33-COUNTIF($A$31:$A$36,"<="&A33)/1000 -> 0.998 | D33: =RANK(LARGE($B$31:$B$36,ROWS($1:3)),$B$31:$B$36,0) -> 2 | E33: =INDEX($A$31:$A$36,MATCH(LARGE($C$31:$C$36,ROWS($1:3)),$C$31:$C$36,0)) -> Julie | F33: =LARGE($B$31:$B$36,ROWS($1:3)) -> 2 | H33: 1 | I33: 0 | J33: 0 | K33: 0 | L33: 0 | M33: 1 | N33: 21000006 | P33: 2 | Q33: =INDEX($E$31:$E$36,MATCH(LARGE($N$31:$N$36,ROWS($1:3)),$N$31:$N$36,0)) -> Britney
A34: Todd | B34: 1 | C34: 0.994 | D34: =RANK(LARGE($B$31:$B$36,ROWS($1:4)),$B$31:$B$36,0) -> 4 | E34: =INDEX($A$31:$A$36,MATCH(LARGE($C$31:$C$36,ROWS($1:4)),$C$31:$C$36,0)) -> aa | F34: =LARGE($B$31:$B$36,ROWS($1:4)) -> 1 | H34: 0 | I34: 0 | J34: 0 | K34: 0 | L34: 1 | M34: 0 | N34: 10000099 | P34: 4 | Q34: =INDEX($E$31:$E$36,MATCH(LARGE($N$31:$N$36,ROWS($1:4)),$N$31:$N$36,0)) -> Todd
A35: Julie | B35: 2 | C35: 1.996 | D35: =RANK(LARGE($B$31:$B$36,ROWS($1:5)),$B$31:$B$36,0) -> 4 | E35: =INDEX($A$31:$A$36,MATCH(LARGE($C$31:$C$36,ROWS($1:5)),$C$31:$C$36,0)) -> Alfred | F35: =LARGE($B$31:$B$36,ROWS($1:5)) -> 1 | H35: 0 | I35: 0 | J35: 0 | K35: 0 | L35: 1 | M35: 0 | N35: 10000098 | P35: 4 | Q35: =INDEX($E$31:$E$36,MATCH(LARGE($N$31:$N$36,ROWS($1:5)),$N$31:$N$36,0)) -> aa
A36: aa | B36: 1 | C36: 0.999 | D36: =RANK(LARGE($B$31:$B$36,ROWS($1:6)),$B$31:$B$36,0) -> 4 | E36: =INDEX($A$31:$A$36,MATCH(LARGE($C$31:$C$36,ROWS($1:6)),$C$31:$C$36,0)) -> Todd | F36: =LARGE($B$31:$B$36,ROWS($1:6)) -> 1 | H36: 0 | I36: 0 | J36: 1 | K36: 0 | L36: 0 | M36: 0 | N36: 10009994 | P36: 4 | Q36: =INDEX($E$31:$E$36,MATCH(LARGE($N$31:$N$36,ROWS($1:6)),$N$31:$N$36,0)) -> Alfred
G50: Kevin | H50: Julie | J50: 1 | K50: 6 | N50: =SUMIF(G50:H52,G50,J50:K52) -> 6
G51: Britney | H51: Kevin | J51: 2 | K51: 5
G52: Alfred | H52: Julie | J52: 3 | K52: 4
F65: A vérifier | G65: PB ENTRE 3 ET 4
F68: Finale
F69: T | G69: L | H69: M | I69: B | J69: S | K69: G
F70: 6 | G70: 4 | H70: 2 | I70: 5 | J70: 3 | K70: 1 | M70: 1
F71: 1 | G71: 3 | H71: 4 | I71: 2 | J71: 6 | K71: 5 | M71: 2
F72: 3 | G72: 1 | H72: 6 | I72: 4 | J72: 5 | K72: 2 | M72: 3
F73: 2 | G73: 5 | H73: 1 | I73: 6 | J73: 4 | K73: 3 | M73: 4
F74: 5 | G74: 6 | H74: 3 | I74: 1 | J74: 2 | K74: 4 | M74: 5
F75: 4 | G75: 2 | H75: 5 | I75: 3 | J75: 1 | K75: 6 | M75: 6
I81: S | J81: T et M
I82: G | J82: T, M et B
I83: L | J83: M et S
I84: B | J84: G
I85: T | J85: G et S
I86: M | J86: G, S et L
